bitfinex/quotes_BTCUSD_20241202
["timestamp","ask_amount","ask_price","bid_price","bid_amount"]
[1733137824463,0.33184521,95029.0,95028.0,0.00145995]
[1733137825396,0.30884521,95029.0,95028.0,0.19551982]
[1733137825637,0.10884521,95029.0,95028.0,0.19551982]
[1733137826113,0.31730721,95029.0,95028.0,0.19551982]
[1733137826544,0.31930721,95029.0,95028.0,0.19551982]
[1733137826779,0.31530721,95029.0,95028.0,0.19551982]
[1733137826996,0.31930721,95029.0,95028.0,0.19551982]
[1733137827480,0.38828293,95029.0,95028.0,0.00145995]
[1733137827693,0.59228293,95029.0,95028.0,0.00145995]
[1733137827910,0.58828293,95029.0,95028.0,0.00145995]
[1733137828147,0.60624251,95029.0,95028.0,0.00145995]
[1733137828343,0.53726679,95029.0,95028.0,0.00145995]
[1733137828576,0.52270709,95029.0,95028.0,0.00145995]
[1733137829665,0.54770709,95029.0,95028.0,0.00145995]
[1733137829873,0.54370709,95029.0,95028.0,0.00145995]
[1733137830337,0.54770709,95029.0,95028.0,0.00145995]
[1733137830566,0.54370709,95029.0,95028.0,0.00145995]
[1733137830775,0.62524648,95029.0,95028.0,0.00145995]
[1733137831524,0.54770709,95029.0,95028.0,0.00145995]
[1733137832906,0.95492663,95029.0,95028.0,0.00145995]
[1733137833363,0.98558941,95029.0,95028.0,0.00145995]
[1733137833612,0.98658941,95029.0,95028.0,0.00145995]
[1733137834066,0.99558941,95029.0,95028.0,0.00145995]
[1733137834269,0.98658941,95029.0,95028.0,0.00145995]
[1733137834479,1.09842087,95029.0,95028.0,0.00145995]
[1733137834705,0.210484,95019.0,95018.0,0.0008621]
[1733137834935,0.33632921,95019.0,95018.0,0.00093747]
[1733137835144,0.46438796,95019.0,95018.0,0.00093747]
[1733137835366,0.47043542,95019.0,95018.0,0.00093747]
[1733137835799,0.47043542,95019.0,95006.0,0.06845987]
[1733137835800,0.023,95018.0,95006.0,0.06845987]
[1733137836064,0.023,95018.0,94996.0,0.07307747]
[1733137836065,0.23351,95007.0,94996.0,0.07307747]
[1733137836349,0.12584521,95006.0,95005.0,0.06845987]
[1733137836570,0.13189267,95006.0,95005.0,0.06845987]
[1733137837205,0.15346501,95006.0,95005.0,0.06845987]
[1733137837415,0.21091251,95006.0,95002.0,0.06845987]
[1733137837670,0.35446501,95006.0,95005.0,0.06845987]
[1733137838108,0.210515,95005.0,95004.0,0.06845987]
[1733137838334,0.31336021,95005.0,95004.0,0.06845987]
[1733137838768,0.31940767,95005.0,95004.0,0.06845987]
[1733137839265,0.10889267,95005.0,95004.0,0.06845987]
[1733137839489,0.10889267,95005.0,95004.0,0.05845987]
[1733137839715,0.30889267,95005.0,95004.0,0.05845987]
[1733137839922,0.30989267,95005.0,95004.0,0.05845987]
[1733137840134,0.30989267,95005.0,95004.0,0.10685987]
[1733137840853,0.10889267,95005.0,95004.0,0.18345987]
[1733137841114,0.10989267,95005.0,95004.0,0.18345987]
[1733137841760,0.18506186,95005.0,95004.0,0.0766]
[1733137841971,0.18506186,95005.0,94995.0,0.1282]
[1733137841972,0.210535,94996.0,94995.0,0.1282]
[1733137842204,0.31338021,94996.0,94995.0,0.17665987]
[1733137842417,0.31941817,94996.0,94995.0,0.1182]
[1733137843072,0.10888317,94996.0,94995.0,0.17665987]
[1733137843280,0.00603796,94996.0,94995.0,0.20650388]
[1733137843519,0.00603796,94996.0,94995.0,0.20750388]
[1733137843731,0.210526,95000.0,94999.0,0.05845987]
[1733137843973,0.31337121,95000.0,94999.0,0.05845987]
[1733137845042,0.31337121,95000.0,94999.0,0.05945987]
[1733137845279,0.10284521,95000.0,94999.0,0.05945987]
[1733137845729,0.10284521,95000.0,94999.0,0.06045987]
[1733137845942,0.10284521,95000.0,94999.0,0.13955987]
[1733137848539,0.12584521,95000.0,94999.0,0.13955987]
[1733137849196,0.02078827,95010.0,95009.0,0.05845987]
[1733137849407,0.14663348,95010.0,95009.0,0.05845987]
[1733137849623,0.34663348,95010.0,95009.0,0.05845987]
[1733137850749,0.14963348,95010.0,95009.0,0.05845987]
[1733137850996,0.14963348,95010.0,95009.0,0.21720388]
[1733137850997,0.02378827,95010.0,95009.0,0.21720388]
[1733137851232,0.005,95010.0,95009.0,0.21720388]
[1733137852077,0.003,95010.0,95009.0,0.21720388]
[1733137852303,0.410473,95024.0,95018.0,0.02884401]
[1733137852510,0.410473,95024.0,95018.0,0.08730388]
[1733137852730,0.00580756,95019.0,95018.0,0.08730388]
[1733137852942,0.00014418,95019.0,95018.0,0.08730388]
[1733137853152,0.00014418,95019.0,95018.0,0.16400388]
[1733137853794,0.00580756,95019.0,95018.0,0.16500388]
[1733137854241,0.10865277,95019.0,95018.0,0.13615987]
[1733137854508,0.34213677,95019.0,95018.0,0.001]
[1733137854745,0.54213677,95019.0,95018.0,0.001]
[1733137855199,0.210499,95012.0,95011.0,0.05845987]
[1733137855406,0.33634421,95012.0,95011.0,0.05845987]
[1733137855620,0.34201608,95012.0,95011.0,0.05845987]
[1733137855826,0.43833051,95012.0,95011.0,0.05845987]
[1733137856035,0.210528,94999.0,94998.0,0.02884401]
[1733137856249,0.31337321,94999.0,94998.0,0.08730388]
[1733137856708,0.31904508,94999.0,94998.0,0.08730388]
[1733137857816,0.34204508,94999.0,94998.0,0.08730388]
[1733137858282,0.34204508,94999.0,94998.0,0.08830388]
[1733137858742,0.34204508,94999.0,94998.0,0.08930388]
[1733137859212,0.00567187,94999.0,94998.0,0.08930388]
[1733137859425,0.023,95006.0,95005.0,0.05845987]
[1733137859628,0.12584521,95006.0,95005.0,0.05845987]
[1733137859841,0.13151708,95006.0,95005.0,0.05845987]
[1733137860725,0.13251708,95006.0,95005.0,0.05845987]
[1733137861378,0.13451708,95006.0,95005.0,0.05845987]
[1733137861606,0.13445083,95006.0,95005.0,0.05845987]
[1733137862491,0.34496383,95006.0,95005.0,0.05845987]
[1733137862700,0.34496383,95006.0,95001.0,0.01]
[1733137862929,0.210517,95004.0,95001.0,0.01]
[1733137863165,0.10284521,95003.0,95001.0,0.01]
[1733137863391,0.210521,95002.0,95001.0,0.01]
[1733137863597,0.53636621,95002.0,95001.0,0.01]
[1733137863833,0.54203808,95002.0,95001.0,0.01]
[1733137864338,0.64486954,95002.0,95001.0,0.01]
[1733137864760,0.6947455,95002.0,95001.0,0.01]
[1733137866547,0.7037455,95002.0,95001.0,0.01]
[1733137866770,0.7087455,95002.0,95001.0,0.01]
[1733137867258,0.7037455,95002.0,95001.0,0.01]
[1733137867690,0.60791404,95002.0,95001.0,0.06845987]
[1733137867904,0.5817205,95002.0,95001.0,0.14885987]
[1733137868130,0.55103808,95002.0,95001.0,0.01]
[1733137868344,0.54803808,95002.0,95001.0,0.01]
[1733137868576,0.58070488,95002.0,95001.0,0.01]
[1733137868807,0.69253634,95002.0,95001.0,0.01]
[1733137869033,0.58070488,95002.0,95001.0,0.01]
[1733137869266,0.58970488,95002.0,95001.0,0.01]
[1733137869785,0.57470488,95002.0,95001.0,0.01]
[1733137870013,0.57970488,95002.0,95001.0,0.01]
[1733137870230,0.57970488,95002.0,95001.0,0.06845987]
[1733137870449,0.54203808,95002.0,95001.0,0.14625987]
[1733137870692,0.11451708,95002.0,95001.0,0.14625987]
[1733137871125,0.10851708,95002.0,95001.0,0.14625987]
[1733137871337,0.11751708,95002.0,95001.0,0.14625987]
[1733137871564,0.11351708,95002.0,95001.0,0.14625987]
[1733137871776,0.11651708,95002.0,95001.0,0.14625987]
[1733137871999,0.11351708,95002.0,95001.0,0.14625987]
[1733137872457,0.11451708,95002.0,95001.0,0.14625987]
[1733137872680,0.10851708,95002.0,95001.0,0.14625987]
[1733137872920,0.11051708,95002.0,95001.0,0.14625987]
[1733137873146,0.11151708,95002.0,95001.0,0.14625987]
[1733137874025,0.11051708,95002.0,95001.0,0.14625987]
[1733137874250,0.11151708,95002.0,95001.0,0.14625987]
[1733137875174,0.10951708,95002.0,95001.0,0.14625987]
[1733137875391,0.13251708,95002.0,95001.0,0.14712247]
[1733137875607,0.13551708,95002.0,95001.0,0.14712247]
[1733137875831,0.13451708,95002.0,95001.0,0.14712247]
[1733137876089,0.13551708,95002.0,95001.0,0.14712247]
[1733137876315,0.22929511,95002.0,95001.0,0.06932247]
[1733137876533,0.23229511,95002.0,95001.0,0.06932247]
[1733137876988,0.23029511,95002.0,95001.0,0.06932247]
[1733137877241,0.23629511,95002.0,95001.0,0.06932247]
[1733137877489,0.13751708,95002.0,95001.0,0.0108626]
[1733137877701,0.11751708,95002.0,95001.0,0.06932247]
[1733137878370,0.11151708,95002.0,95001.0,0.06932247]
[1733137878796,0.31951708,95002.0,95001.0,0.0108626]
[1733137879010,0.44017815,95002.0,95001.0,0.0108626]
[1733137879228,0.45017815,95002.0,95001.0,0.0108626]
[1733137879470,0.44417815,95002.0,95001.0,0.0108626]
[1733137879942,0.45217815,95002.0,95001.0,0.0108626]
[1733137880182,0.44017815,95002.0,95001.0,0.0108626]
[1733137880625,0.44417815,95002.0,95001.0,0.0108626]
[1733137881060,0.46509436,95002.0,95001.0,0.0108626]
[1733137881306,0.48154964,95002.0,95001.0,0.0108626]
[1733137881548,0.48954964,95002.0,95001.0,0.0108626]
[1733137882010,0.48554964,95002.0,95001.0,0.0108626]
[1733137882258,0.49154964,95002.0,95001.0,0.0108626]
[1733137882691,0.40155351,95002.0,95001.0,0.0108626]
[1733137882927,0.37855351,95002.0,95001.0,0.0108626]
[1733137883150,0.35288857,95002.0,95001.0,0.0108626]
[1733137883387,0.33197236,95002.0,95001.0,0.0108626]
[1733137883656,0.33397236,95002.0,95001.0,0.0108626]
[1733137884151,0.34097236,95002.0,95001.0,0.0108626]
[1733137884814,0.33197236,95002.0,95001.0,0.0108626]
[1733137885022,0.33397236,95002.0,95001.0,0.0108626]
[1733137885557,0.33897236,95002.0,95001.0,0.0108626]
[1733137885767,0.33897236,95002.0,95001.0,0.0875626]
[1733137886232,0.33897236,95002.0,95001.0,0.14602247]
[1733137887835,0.13897236,95002.0,95001.0,0.14602247]
[1733137888984,0.33897236,95002.0,95001.0,0.14602247]
[1733137891190,0.32251708,95002.0,95001.0,0.14602247]
[1733137893022,0.32251708,95002.0,95001.0,0.17486648]
[1733137893290,0.3427786,95002.0,95001.0,0.14602247]
[1733137893502,0.3427786,95002.0,95001.0,0.06932247]
[1733137893730,0.37548703,95002.0,95001.0,0.0108626]
[1733137894366,0.35522551,95002.0,95001.0,0.0108626]
[1733137895034,0.35522551,95002.0,95001.0,0.06932247]
[1733137895727,0.32251708,95002.0,95001.0,0.06932247]
[1733137896181,0.32251708,95002.0,95001.0,0.11682247]
[1733137897717,0.12251708,95002.0,95001.0,0.11682247]
[1733137898192,0.12251708,95002.0,95001.0,0.19472247]
[1733137898678,0.32251708,95002.0,95001.0,0.19472247]
[1733137899810,0.12251708,95002.0,95001.0,0.19472247]
[1733137900705,0.32251708,95002.0,95001.0,0.19472247]
[1733137903786,0.12251708,95002.0,95001.0,0.19472247]
[1733137904680,0.32251708,95002.0,95001.0,0.19472247]
[1733137905127,0.32251708,95002.0,95001.0,0.22356648]
[1733137905811,0.12251708,95002.0,95001.0,0.22356648]
[1733137907155,0.01967187,95002.0,95001.0,0.22356648]
[1733137908039,0.0017252,95006.0,95002.0,0.05845987]
[1733137908249,0.10284521,95005.0,95002.0,0.05845987]
[1733137908702,0.10284521,95005.0,95004.0,0.05845987]
[1733137908914,0.002,95002.0,95001.0,0.19572247]
[1733137909123,0.10484521,95002.0,95001.0,0.19472247]
[1733137909372,0.10284521,95002.0,95001.0,0.22356648]
[1733137909603,0.0017252,95006.0,95005.0,0.02884401]
[1733137909817,0.0017252,95006.0,95005.0,0.16740388]
[1733137910031,0.0017252,95006.0,95005.0,0.21640388]
[1733137912225,0.0017252,95006.0,95005.0,0.22040388]
[1733137912433,0.0017252,95006.0,95005.0,0.22340388]
[1733137913086,0.0017252,95006.0,95005.0,0.16494401]
[1733137913307,0.10457041,95006.0,95005.0,0.19455987]
[1733137913805,0.10457041,95006.0,95005.0,0.007]
[1733137913806,0.10974892,95006.0,95005.0,0.007]
[1733137913808,0.30974892,95006.0,95005.0,0.007]
[1733137914037,0.30974892,95006.0,95005.0,0.06545987]
[1733137914460,0.30974892,95006.0,95005.0,0.06245987]
[1733137914684,0.30974892,95006.0,95005.0,0.05945987]
[1733137915162,0.33029744,95006.0,95005.0,0.05845987]
[1733137915591,0.33029744,95006.0,95001.0,0.0108626]
[1733137915592,0.33229744,95006.0,95001.0,0.0108626]
[1733137915798,0.52387521,95005.0,95004.0,0.05845987]
[1733137916007,0.52906494,95005.0,95004.0,0.05845987]
[1733137916243,0.52906494,95005.0,95001.0,0.06932247]
[1733137916667,0.72906494,95005.0,95001.0,0.06932247]
[1733137916904,0.210519,95003.0,95001.0,0.06932247]
[1733137917138,0.10284521,95002.0,95001.0,0.06932247]
[1733137917619,0.1407619,95002.0,95001.0,0.06932247]
[1733137918705,0.3487619,95002.0,95001.0,0.07032247]
[1733137918932,0.31103494,95002.0,95001.0,0.06932247]
[1733137919142,0.34076015,95002.0,95001.0,0.06932247]
[1733137919355,0.31103494,95002.0,95001.0,0.06932247]
[1733137919581,0.31203494,95002.0,95001.0,0.06932247]
[1733137920500,0.31203494,95002.0,95001.0,0.17426648]
[1733137920733,0.00618973,95002.0,95001.0,0.17426648]
[1733137920959,0.00518973,95002.0,95001.0,0.22202938]
[1733137921198,0.002,95002.0,95001.0,0.22016648]
[1733137921429,0.001,95002.0,95001.0,0.22016648]
[1733137921678,0.0017252,95006.0,95002.0,0.421042]
[1733137921923,0.0017252,95006.0,95005.0,0.05845987]
[1733137922134,0.0017252,95006.0,95005.0,0.18632258]
[1733137923434,0.0337692,95006.0,95005.0,0.18632258]
[1733137924515,0.0347692,95006.0,95005.0,0.18632258]
[1733137924745,0.0357692,95006.0,95005.0,0.18932258]
[1733137924976,0.0347692,95006.0,95005.0,0.18932258]
[1733137925190,0.0347692,95006.0,95005.0,0.19332258]
[1733137925624,0.0357692,95006.0,95005.0,0.19632258]
[1733137926083,0.0357692,95006.0,95005.0,0.22516668]
[1733137926299,0.0357692,95006.0,95005.0,0.22330388]
[1733137927474,0.0009986,95026.0,95018.0,0.42378988]
[1733137927930,0.0017248,95029.0,95018.0,0.42378988]
[1733137928593,0.0017248,95029.0,95018.0,0.52863509]
[1733137928834,0.0017248,95029.0,95018.0,0.68263509]
[1733137929045,0.0017248,95029.0,95028.0,0.39852387]
[1733137929290,0.0017248,95029.0,95028.0,0.42736788]
[1733137930898,0.0017248,95029.0,95028.0,0.21690388]
[1733137931351,0.0017248,95029.0,95028.0,0.16344401]
[1733137931584,0.00772804,95029.0,95028.0,0.17244401]
[1733137931864,0.0017248,95029.0,95028.0,0.22190388]
[1733137932104,0.0017248,95029.0,95028.0,0.09230388]
[1733137932344,0.00672804,95029.0,95028.0,0.09930388]
[1733137932576,0.00772804,95029.0,95028.0,0.09430388]
[1733137932783,0.00772804,95029.0,95028.0,0.09830388]
[1733137932988,0.0027248,95029.0,95028.0,0.09830388]
[1733137933446,0.0027248,95029.0,95028.0,0.43876788]
[1733137933705,0.0017248,95029.0,95028.0,0.43176788]
[1733137934137,0.0017248,95029.0,95028.0,0.42776788]
[1733137934624,0.0017248,95029.0,95028.0,0.43376788]
[1733137934840,0.0017248,95029.0,95028.0,0.42776788]
[1733137935281,0.0017248,95029.0,95028.0,0.43776788]
[1733137935726,0.0017248,95029.0,95028.0,0.42776788]
[1733137936168,0.0017248,95029.0,95028.0,0.43176788]
[1733137937054,0.0017248,95029.0,95028.0,0.44076788]
[1733137937055,0.0027248,95029.0,95028.0,0.44076788]
[1733137941084,0.0027248,95029.0,95028.0,0.54361309]
[1733137941301,0.0027248,95029.0,95028.0,0.69361309]
[1733137941542,0.0009974,95049.0,95030.0,0.47076288]
[1733137941765,0.0009974,95049.0,95043.0,0.29773488]
[1733137942016,0.0009974,95049.0,95043.0,0.67298009]
[1733137942254,0.0017244,95050.0,95043.0,0.67298009]
[1733137943234,0.0017244,95050.0,95043.0,0.69083175]
[1733137944345,0.0017244,95050.0,95043.0,0.69883175]
[1733137944556,0.0027248,95044.0,95043.0,0.69883175]
[1733137944810,0.0027248,95044.0,95043.0,0.70783175]
[1733137945060,0.0027248,95044.0,95043.0,0.69883175]
[1733137945712,0.0017244,95050.0,95043.0,0.69883175]
[1733137945973,0.0017244,95050.0,95049.0,0.57802088]
[1733137946190,0.0017244,95050.0,95049.0,0.68086609]
[1733137946634,0.0009885,95073.0,95072.0,0.42796988]
[1733137947087,0.2,95084.0,95080.0,0.29765288]
[1733137947345,0.00232481,95081.0,95080.0,0.29765288]
[1733137947566,0.00694661,95081.0,95080.0,0.29765288]
[1733137948004,0.00694661,95081.0,95080.0,0.08730388]
[1733137948247,0.00232481,95081.0,95080.0,0.08730388]
[1733137948488,0.00656146,95081.0,95080.0,0.08730388]
[1733137948961,0.20656146,95081.0,95080.0,0.08730388]
[1733137949611,0.00756146,95081.0,95080.0,0.08730388]
[1733137950143,0.00656146,95081.0,95080.0,0.08730388]
[1733137950351,0.00856146,95081.0,95080.0,0.08730388]
[1733137950803,0.30940667,95081.0,95080.0,0.05845987]
[1733137951240,0.31040667,95081.0,95080.0,0.05845987]
[1733137951490,0.20756146,95081.0,95080.0,0.08730388]
[1733137951729,0.00756146,95081.0,95080.0,0.08730388]
[1733137951963,0.00756146,95081.0,95080.0,0.08916517]
[1733137952188,0.00332481,95081.0,95080.0,0.08916517]
[1733137952649,0.00232481,95081.0,95080.0,0.08916517]
[1733137954593,0.00232481,95081.0,95080.0,0.09516517]
[1733137955305,0.00232481,95081.0,95080.0,0.09330388]
[1733137955781,0.00232481,95081.0,95080.0,0.08730388]
[1733137956195,0.00232481,95081.0,95080.0,0.09630388]
[1733137956410,0.00232481,95081.0,95080.0,0.09030388]
[1733137956855,0.00232481,95081.0,95080.0,0.09330388]
[1733137957079,0.00232481,95081.0,95080.0,0.08730388]
[1733137957300,0.00232481,95081.0,95080.0,0.08830388]
[1733137957532,0.00232481,95081.0,95080.0,0.09130388]
[1733137957748,0.00232481,95081.0,95080.0,0.08730388]
[1733137957965,0.00232481,95081.0,95080.0,0.08830388]
[1733137959082,0.00232481,95081.0,95080.0,0.09130388]
[1733137959311,0.00232481,95081.0,95080.0,0.09016519]
[1733137959516,0.00232481,95081.0,95080.0,0.09416519]
[1733137959719,0.00232481,95081.0,95080.0,0.09616519]
[1733137960216,0.00232481,95081.0,95080.0,0.13926519]
[1733137960456,0.00232481,95081.0,95080.0,0.13426519]
[1733137960705,0.00232481,95081.0,95080.0,0.3164104]
[1733137960915,0.00232481,95081.0,95080.0,0.46854909]
[1733137961132,0.0017266,95087.0,95086.0,0.44763888]
[1733137961365,0.0017266,95087.0,95086.0,0.67488409]
[1733137961590,0.00187129,95087.0,95086.0,0.67488409]
[1733137962043,0.00014469,95087.0,95086.0,0.69622093]
[1733137962295,0.0017238,95102.0,95098.0,0.02884401]
[1733137962507,0.0017238,95102.0,95098.0,0.13354982]
[1733137962750,0.0017238,95102.0,95098.0,0.19200969]
[1733137962974,0.0017238,95102.0,95098.0,0.34200969]
[1733137963222,0.0017238,95102.0,95098.0,0.34014909]
[1733137963644,0.0017238,95102.0,95098.0,0.35514909]
[1733137963851,0.0017238,95102.0,95098.0,0.34614909]
[1733137964103,0.0017238,95102.0,95098.0,0.3576403]
[1733137964329,0.0017238,95102.0,95098.0,0.3646403]
[1733137965216,0.0017238,95102.0,95098.0,0.3736403]
[1733137966120,0.0017238,95102.0,95098.0,0.5008403]
[1733137966322,0.0017238,95102.0,95099.0,0.41876687]
[1733137966545,0.0017238,95102.0,95099.0,0.52161208]
[1733137968102,0.0017238,95102.0,95099.0,0.17884401]
[1733137968550,0.0017238,95102.0,95099.0,0.24816464]
[1733137968755,0.0017238,95102.0,95099.0,0.25330388]
[1733137969207,0.0017238,95102.0,95099.0,0.19484401]
[1733137969437,0.0017238,95102.0,95099.0,0.10330388]
[1733137969676,0.0017238,95102.0,95099.0,0.10516465]
[1733137971258,0.0017238,95102.0,95099.0,0.07445987]
[1733137971486,0.0081559,95100.0,95099.0,0.09430388]
[1733137971697,0.0081559,95100.0,95099.0,0.10230388]
[1733137971900,0.0081559,95100.0,95099.0,0.08816508]
[1733137972112,0.0081559,95100.0,95099.0,0.09316508]
[1733137972339,0.0081559,95100.0,95099.0,0.10116508]
[1733137972565,0.0081559,95100.0,95099.0,0.09316508]
[1733137972803,0.0081559,95100.0,95099.0,0.08816508]
[1733137973057,0.0091559,95100.0,95099.0,0.08816508]
[1733137973274,0.0081559,95100.0,95099.0,0.08816508]
[1733137974389,0.0081559,95100.0,95099.0,0.08916508]
[1733137980431,0.0081559,95100.0,95099.0,0.03070521]
[1733137980619,0.2081559,95100.0,95099.0,0.03070521]
[1733137980845,0.2081559,95100.0,95099.0,0.08916508]
[1733137981770,0.0081559,95100.0,95099.0,0.08916508]
[1733137982102,0.001724,95100.0,95099.0,0.08916508]
[1733137982749,0.00812123,95100.0,95099.0,0.08916508]
[1733137982921,0.001724,95100.0,95099.0,0.32051029]
[1733137983992,0.001724,95100.0,95099.0,0.33780164]
[1733137984199,0.001724,95100.0,95099.0,0.33680164]
[1733137984594,0.001724,95100.0,95099.0,0.34980164]
[1733137984800,0.001724,95100.0,95099.0,0.49080164]
[1733137985042,0.001724,95100.0,95099.0,0.48680164]
[1733137985245,0.001724,95100.0,95099.0,0.49580164]
[1733137985455,0.002724,95100.0,95099.0,0.49280164]
[1733137985663,0.002724,95100.0,95099.0,0.50180164]
[1733137986605,0.002724,95100.0,95099.0,0.47295763]
[1733137986813,0.002724,95100.0,95099.0,0.50180164]
[1733137987208,0.002724,95100.0,95099.0,0.24895643]
[1733137987417,0.002724,95100.0,95099.0,0.23166508]
[1733137988094,0.002724,95100.0,95099.0,0.07432107]
[1733137988303,0.002724,95100.0,95099.0,0.31533292]
[1733137988479,0.002724,95100.0,95099.0,0.10316508]
[1733137988711,0.002724,95100.0,95099.0,0.10502595]
[1733137988939,2.309e-05,95100.0,95099.0,0.09002595]
[1733137989354,2.309e-05,95100.0,95099.0,0.10402595]
[1733137989972,2.309e-05,95100.0,95099.0,0.10216508]
[1733137990409,0.00698874,95100.0,95099.0,0.10216508]
[1733137990616,0.00698874,95100.0,95099.0,0.08816508]
[1733137990820,0.00698874,95100.0,95099.0,0.09616508]
[1733137991032,0.00698874,95100.0,95099.0,0.09216508]
[1733137991503,2.309e-05,95100.0,95099.0,0.09116508]
[1733137991936,2.309e-05,95100.0,95099.0,0.09216508]
[1733137992171,2.309e-05,95100.0,95099.0,0.09402603]
[1733137993275,2.309e-05,95100.0,95099.0,0.03370521]
[1733137993548,0.00696873,95100.0,95099.0,0.09216508]
[1733137993769,0.20696873,95100.0,95099.0,0.09216508]
[1733137993996,0.20696873,95100.0,95099.0,0.09116508]
[1733137994223,0.20696873,95100.0,95099.0,0.08816508]
[1733137994667,0.20696873,95100.0,95099.0,0.08916508]
[1733137994877,0.20696873,95100.0,95099.0,0.0018612]
[1733137995086,0.20696873,95100.0,95099.0,0.08916508]
[1733137995289,0.20696873,95100.0,95099.0,0.03070521]
[1733137995534,0.20696873,95100.0,95099.0,0.08916508]
[1733137997461,0.30981394,95100.0,95099.0,0.08916508]
[1733138002691,0.10981394,95100.0,95099.0,0.08916508]
[1733138002939,0.00696873,95100.0,95099.0,0.08916508]
[1733138003187,0.00696873,95100.0,95099.0,0.21586508]
[1733138003658,2.309e-05,95100.0,95099.0,0.21586508]
[1733138007337,2.309e-05,95100.0,95099.0,0.21886508]
[1733138008836,2.309e-05,95100.0,95099.0,0.47171029]
[1733138009721,2.309e-05,95100.0,95099.0,0.47071029]
[1733138009942,2.309e-05,95100.0,95099.0,0.47671029]
[1733138010400,2.309e-05,95100.0,95099.0,0.46771029]
[1733138010635,2.309e-05,95100.0,95099.0,0.47671029]
[1733138010861,0.00102309,95100.0,95099.0,0.48371029]
[1733138011070,0.00102309,95100.0,95099.0,0.32471029]
[1733138011332,0.00102309,95100.0,95099.0,0.33371029]
[1733138012260,0.00102309,95100.0,95099.0,0.23086508]
[1733138012466,0.00102309,95100.0,95099.0,0.10416508]
[1733138012678,0.00102309,95100.0,95099.0,0.10602594]
[1733138012887,0.00102309,95100.0,95099.0,0.23572594]
[1733138013128,0.00102309,95100.0,95099.0,0.23386508]
[1733138013356,2.309e-05,95100.0,95099.0,0.22686508]
[1733138013596,0.001724,95101.0,95100.0,0.15843678]
[1733138013823,0.001724,95101.0,95100.0,0.16029758]
[1733138014000,0.001724,95101.0,95100.0,0.10183771]
[1733138014231,0.001724,95101.0,95100.0,0.16029758]
[1733138014444,0.001724,95101.0,95100.0,0.10183771]
[1733138014869,0.001724,95101.0,95100.0,0.13068172]
[1733138015095,0.001724,95101.0,95100.0,0.18914158]
[1733138016677,0.001724,95101.0,95100.0,0.19628079]
[1733138017093,0.001724,95101.0,95100.0,0.19814172]
[1733138017517,0.001724,95101.0,95100.0,0.20314172]
[1733138019515,0.001724,95101.0,95100.0,0.20128079]
[1733138019729,0.001724,95101.0,95100.0,0.20314173]
[1733138022740,0.000724,95101.0,95100.0,0.20314173]
[1733138023169,0.000724,95101.0,95100.0,0.10316482]
[1733138027064,0.0017238,95102.0,95101.0,0.099276]
[1733138027276,0.0017238,95102.0,95101.0,0.15773587]
[1733138027863,0.0017238,95102.0,95101.0,0.15959678]
[1733138028015,0.0017238,95102.0,95101.0,0.18844079]
[1733138028230,0.0017238,95102.0,95101.0,0.23624079]
[1733138028435,0.0017238,95102.0,95101.0,0.23437988]
[1733138028630,0.0017238,95102.0,95101.0,0.24337988]
[1733138029101,0.0017238,95102.0,95101.0,0.24737988]
[1733138029528,0.0017835,95102.0,95101.0,0.24737988]
[1733138031322,0.0017835,95102.0,95101.0,0.24733988]
[1733138032767,0.0017835,95102.0,95101.0,0.21849587]
[1733138032973,0.0017835,95102.0,95101.0,0.24733988]
[1733138033385,0.0017835,95102.0,95101.0,0.19953988]
[1733138033611,0.0017835,95102.0,95101.0,0.17069587]
[1733138034094,0.0017835,95102.0,95101.0,0.19953988]
[1733138034450,0.00818768,95102.0,95101.0,0.19953988]
[1733138034666,0.0017835,95102.0,95101.0,0.19953988]
[1733138035075,0.00818768,95102.0,95101.0,0.19953988]
[1733138035299,0.0017835,95102.0,95101.0,0.19953988]
[1733138035668,0.0017835,95102.0,95101.0,0.20140084]
[1733138035899,0.0017835,95102.0,95101.0,0.19953988]
[1733138036325,0.00818768,95102.0,95101.0,0.19953988]
[1733138036538,0.0017835,95102.0,95101.0,0.19953988]
[1733138037432,0.00818768,95102.0,95101.0,0.19953988]
[1733138037632,0.0017835,95102.0,95101.0,0.20140084]
[1733138037838,0.0017835,95102.0,95101.0,0.19953988]
[1733138038262,0.00818768,95102.0,95101.0,0.19953988]
[1733138038479,0.0017835,95102.0,95101.0,0.10030388]
[1733138038694,0.00818768,95102.0,95101.0,0.10030388]
[1733138038906,0.0017835,95102.0,95101.0,0.10216486]
[1733138039115,0.00818768,95102.0,95101.0,0.10216486]
[1733138039610,0.00818768,95102.0,95101.0,0.22516487]
[1733138039829,0.00818768,95102.0,95101.0,0.22330388]
[1733138039830,0.0017835,95102.0,95101.0,0.22330388]
[1733138040036,0.0017835,95102.0,95101.0,0.47614909]
[1733138040279,0.0017835,95102.0,95101.0,0.4936695]
[1733138040980,0.0017835,95102.0,95101.0,0.4953919]
[1733138041405,0.0017835,95102.0,95101.0,0.4863919]
[1733138041607,0.0017835,95102.0,95101.0,0.4953919]
[1733138042285,0.0009847,95136.0,95102.0,0.0982165]
[1733138042520,0.0017861,95115.0,95114.0,0.39773287]
[1733138044062,0.0017861,95115.0,95114.0,0.40373287]
[1733138045352,0.0017861,95115.0,95114.0,0.40573287]
[1733138045783,0.0017861,95115.0,95114.0,0.4230021]
[1733138046623,0.0017861,95115.0,95114.0,0.55469132]
[1733138046859,0.0017861,95115.0,95114.0,0.70469132]
[1733138047747,0.0017861,95115.0,95114.0,0.70269132]
[1733138047957,0.0017861,95115.0,95114.0,0.69669132]
[1733138048170,0.0017861,95115.0,95114.0,0.70969132]
[1733138048868,0.0017861,95115.0,95114.0,0.60684611]
[1733138054201,0.0017861,95115.0,95114.0,0.10030388]
[1733138054416,0.0247861,95115.0,95114.0,0.10030388]
[1733138054841,0.03121426,95115.0,95114.0,0.10030388]
[1733138055056,0.0247861,95115.0,95114.0,0.10216455]
[1733138055516,0.0017861,95115.0,95114.0,0.10216455]
[1733138058010,0.0017861,95115.0,95114.0,0.33560976]
[1733138058232,0.0017861,95115.0,95114.0,0.33374909]
[1733138058936,0.0017861,95115.0,95114.0,0.48374909]
[1733138060524,0.0017256,95140.0,95124.0,0.44755488]
[1733138060733,0.0017256,95140.0,95124.0,0.67250009]
[1733138061603,0.0017256,95140.0,95124.0,0.67450009]
[1733138061809,0.0017256,95140.0,95124.0,0.68350009]
[1733138062949,0.0017256,95140.0,95124.0,0.7010463]
[1733138063146,0.0017256,95140.0,95124.0,0.6990463]
[1733138063613,0.0017256,95140.0,95124.0,0.7040463]
[1733138069507,0.023,95139.0,95138.0,0.05845987]
[1733138070192,0.02291464,95139.0,95138.0,0.08730388]
[1733138070431,0.02939058,95139.0,95138.0,0.08730388]
[1733138070655,0.02939058,95139.0,95138.0,0.08930388]
[1733138070875,0.02939058,95139.0,95138.0,0.09530388]
[1733138072018,0.02291464,95139.0,95138.0,0.1148872]
[1733138072254,0.0017256,95140.0,95139.0,0.05845987]
[1733138072472,0.0017256,95140.0,95139.0,0.17020388]
[1733138072703,0.0017256,95140.0,95139.0,0.38042188]